Body Name,Body,Transaction Date,Value,Supplier,Description,Purchase Type,Cost Center,Department,Section
South Ribble Council,http://Statistics.Data.gov.uk\Doc\Local Authority\30UN,06/04/2023,327.36,Travelodge Southport PR8 1RN,NAME REDACTED Travelodge Southport PR8 1RN ,Accomodation,124050,COMU - Communities,JBC - Homelessness
South Ribble Council,http://Statistics.Data.gov.uk\Doc\Local Authority\30UN,11/04/2023,220.00,ibis Preston North PR3 5JE,NAME REDACTED ibis Preston North PR3 5JE 11,Accomodation,124050,COMU - Communities,JBC - Homelessness
South Ribble Council,http://Statistics.Data.gov.uk\Doc\Local Authority\30UN,11/04/2023,582.00,Premier Inn Preston Central PR1 2AB,NAME REDACTED Premier Inn Preston Central P,Accomodation,124050,COMU - Communities,JBC - Homelessness
South Ribble Council,http://Statistics.Data.gov.uk\Doc\Local Authority\30UN,13/04/2023,483.00,Winckley Square Residences PR1 3NA,NAME REDACTED Winckley Square Residences PR,Accomodation,124050,COMU - Communities,JBC - Homelessness
South Ribble Council,http://Statistics.Data.gov.uk\Doc\Local Authority\30UN,26/04/2023,379.36,Travelodge Preston Chorley PR1 5NX,NAME REDACTED Travelodge Preston Chorley PR,Accomodation,124050,COMU - Communities,JBC - Homelessness
South Ribble Council,http://Statistics.Data.gov.uk\Doc\Local Authority\30UN,27/04/2023,68.85,Premier Inn Preston South PR5 6BZ,NAME REDACTED Premier Inn Preston South PR5,Accomodation,124050,COMU - Communities,JBC - Homelessness
South Ribble Council,http://Statistics.Data.gov.uk\Doc\Local Authority\30UN,27/04/2023,570.00,Premier Inn Preston South PR5 6BZ,NAME REDACTED Premier Inn Preston South PR5,Accomodation,124050,COMU - Communities,JBC - Homelessness
South Ribble Council,http://Statistics.Data.gov.uk\Doc\Local Authority\30UN,02/05/2023,418.12,Travelodge Preston Central PR1 5NX,NAME REDACTED Travelodge Preston Central PR,Accomodation,124050,COMU - Communities,JBC - Homelessness
South Ribble Council,http://Statistics.Data.gov.uk\Doc\Local Authority\30UN,03/05/2023,83.30,Premier Inn Preston Central PR1 2AB,NAME REDACTED Premier Inn Preston Central P,Accomodation,124250,COMU - Communities,JBC - Homelessness
South Ribble Council,http://Statistics.Data.gov.uk\Doc\Local Authority\30UN,04/05/2023,531.00,Premier Inn Preston South PR5 6BZ,NAME REDACTED Premier Inn Preston South PR5,Accomodation,124050,COMU - Communities,JBC - Homelessness
South Ribble Council,http://Statistics.Data.gov.uk\Doc\Local Authority\30UN,04/05/2023,533.50,Premier Inn Preston South PR5 6BZ,NAME REDACTED Premier Inn Preston South PR5,Accomodation,124050,COMU - Communities,JBC - Homelessness
South Ribble Council,http://Statistics.Data.gov.uk\Doc\Local Authority\30UN,04/05/2023,598.50,Premier Inn Preston South PR5 6BZ,NAME REDACTED Premier Inn Preston South PR5,Accomodation,124050,COMU - Communities,JBC - Homelessness
South Ribble Council,http://Statistics.Data.gov.uk\Doc\Local Authority\30UN,10/05/2023,50.98,Travelodge Preston Central PR1 5NX,NAME REDACTED Travelodge Preston Central PR,Accomodation,124250,COMU - Communities,JBC - Homelessness
South Ribble Council,http://Statistics.Data.gov.uk\Doc\Local Authority\30UN,10/05/2023,338.56,Travelodge Preston Central PR1 5NX,NAME REDACTED Travelodge Preston Central PR,Accomodation,124050,COMU - Communities,JBC - Homelessness
South Ribble Council,http://Statistics.Data.gov.uk\Doc\Local Authority\30UN,15/05/2023,162.35,Premier Inn Preston Central PR1 2AB,NAME REDACTED Premier Inn Preston Central P,Accomodation,124050,COMU - Communities,JBC - Homelessness
South Ribble Council,http://Statistics.Data.gov.uk\Doc\Local Authority\30UN,19/05/2023,483.00,Winckley Square Residences PR1 3NA,NAME REDACTED Winckley Square Residences PR,Accomodation,124050,COMU - Communities,JBC - Homelessness
South Ribble Council,http://Statistics.Data.gov.uk\Doc\Local Authority\30UN,23/05/2023,543.50,Premier Inn Preston Central PR1 2AB,NAME REDACTED Premier Inn Preston Central P,Accomodation,124050,COMU - Communities,JBC - Homelessness
South Ribble Council,http://Statistics.Data.gov.uk\Doc\Local Authority\30UN,24/05/2023,147.90,Premier Inn Preston Central PR1 2AB,NAME REDACTED Premier Inn Preston Central P,Accomodation,124050,COMU - Communities,JBC - Homelessness
South Ribble Council,http://Statistics.Data.gov.uk\Doc\Local Authority\30UN,25/05/2023,403.84,Travelodge Preston Central PR1 5NX,NAME REDACTED Travelodge Preston Central PR,Accomodation,124050,COMU - Communities,JBC - Homelessness
South Ribble Council,http://Statistics.Data.gov.uk\Doc\Local Authority\30UN,06/06/2023,226.40,Travelodge Preston Central PR1 5NX,NAME REDACTED Travelodge Preston Central PR,Accomodation,124050,COMU - Communities,JBC - Homelessness
South Ribble Council,http://Statistics.Data.gov.uk\Doc\Local Authority\30UN,06/06/2023,226.40,Travelodge Preston Central PR1 5NX,NAME REDACTED Travelodge Preston Central PR,Accomodation,124050,COMU - Communities,JBC - Homelessness
South Ribble Council,http://Statistics.Data.gov.uk\Doc\Local Authority\30UN,07/06/2023,78.52,Travelodge Preston Central PR1 5NX,NAME REDACTED Travelodge Preston Central PR,Accomodation,124250,COMU - Communities,JBC - Homelessness
South Ribble Council,http://Statistics.Data.gov.uk\Doc\Local Authority\30UN,07/06/2023,78.52,Travelodge Preston Central PR1 5NX,NAME REDACTED Travelodge Preston Central PR,Accomodation,124250,COMU - Communities,JBC - Homelessness
South Ribble Council,http://Statistics.Data.gov.uk\Doc\Local Authority\30UN,07/06/2023,78.52,Travelodge Preston Central PR1 5NX,NAME REDACTED Travelodge Preston Central PR,Accomodation,124250,COMU - Communities,JBC - Homelessness
South Ribble Council,http://Statistics.Data.gov.uk\Doc\Local Authority\30UN,08/06/2023,201.92,Travelodge Preston Central PR1 5NX,NAME REDACTED Travelodge Preston Central PR1 5NX,Accomodation,124250,COMU - Communities,JBC - Homelessness
South Ribble Council,http://Statistics.Data.gov.uk\Doc\Local Authority\30UN,08/06/2023,415.06,Travelodge Preston Central PR1 5NX,NAME REDACTED Travelodge Preston Central PR,Accomodation,124050,COMU - Communities,JBC - Homelessness
South Ribble Council,http://Statistics.Data.gov.uk\Doc\Local Authority\30UN,09/06/2023,176.97,Travelodge Preston Central PR1 5NX,NAME REDACTED Travelodge Preston Central PR,Accomodation,124250,COMU - Communities,JBC - Homelessness
South Ribble Council,http://Statistics.Data.gov.uk\Doc\Local Authority\30UN,09/06/2023,180.50,Travelodge Preston Central PR1 5NX,NAME REDACTED Travelodge Preston Central PR,Accomodation,124250,COMU - Communities,JBC - Homelessness
South Ribble Council,http://Statistics.Data.gov.uk\Doc\Local Authority\30UN,09/06/2023,180.50,Travelodge Preston Central PR1 5NX,NAME REDACTED Travelodge Preston Central PR,Accomodation,124250,COMU - Communities,JBC - Homelessness
South Ribble Council,http://Statistics.Data.gov.uk\Doc\Local Authority\30UN,09/06/2023,184.04,Travelodge Preston Central PR1 5NX,NAME REDACTED Travelodge Preston Central PR,Accomodation,124250,COMU - Communities,JBC - Homelessness
South Ribble Council,http://Statistics.Data.gov.uk\Doc\Local Authority\30UN,09/06/2023,431.38,Travelodge Preston Central PR1 5NX,NAME REDACTED Travelodge Preston Central PR,Accomodation,124050,COMU - Communities,JBC - Homelessness
South Ribble Council,http://Statistics.Data.gov.uk\Doc\Local Authority\30UN,09/06/2023,597.50,Premier Inn Preston South PR5 6BZ,NAME REDACTED Premier Inn Preston South PR5,Accomodation,124050,COMU - Communities,JBC - Homelessness
South Ribble Council,http://Statistics.Data.gov.uk\Doc\Local Authority\30UN,12/06/2023,55.99,Travelodge Preston Central PR1 5NX,NAME REDACTED Travelodge Preston Central PR,Accomodation,124250,COMU - Communities,JBC - Homelessness
South Ribble Council,http://Statistics.Data.gov.uk\Doc\Local Authority\30UN,12/06/2023,57.10,Travelodge Preston Central PR1 5NX,NAME REDACTED Travelodge Preston Central PR,Accomodation,124250,COMU - Communities,JBC - Homelessness
South Ribble Council,http://Statistics.Data.gov.uk\Doc\Local Authority\30UN,12/06/2023,57.10,Travelodge Preston Central PR1 5NX,NAME REDACTED Travelodge Preston Central PR,Accomodation,124250,COMU - Communities,JBC - Homelessness
South Ribble Council,http://Statistics.Data.gov.uk\Doc\Local Authority\30UN,12/06/2023,58.22,Travelodge Preston Central PR1 5NX,NAME REDACTED Travelodge Preston Central PR,Accomodation,124250,COMU - Communities,JBC - Homelessness
South Ribble Council,http://Statistics.Data.gov.uk\Doc\Local Authority\30UN,13/06/2023,61.18,Travelodge Preston Central PR1 5NX,NAME REDACTED Travelodge Preston Central PR,Accomodation,124250,COMU - Communities,JBC - Homelessness
South Ribble Council,http://Statistics.Data.gov.uk\Doc\Local Authority\30UN,13/06/2023,61.18,Travelodge Preston Central PR1 5NX,NAME REDACTED Travelodge Preston Central PR,Accomodation,124250,COMU - Communities,JBC - Homelessness
South Ribble Council,http://Statistics.Data.gov.uk\Doc\Local Authority\30UN,13/06/2023,61.18,Travelodge Preston Central PR1 5NX,NAME REDACTED Travelodge Preston Central PR,Accomodation,124250,COMU - Communities,JBC - Homelessness
South Ribble Council,http://Statistics.Data.gov.uk\Doc\Local Authority\30UN,13/06/2023,61.18,Travelodge Preston Central PR1 5NX,NAME REDACTED Travelodge Preston Central PR,Accomodation,124250,COMU - Communities,JBC - Homelessness
South Ribble Council,http://Statistics.Data.gov.uk\Doc\Local Authority\30UN,13/06/2023,600.00,Beacon Fell View Holiday Park,NAME REDACTED Beacon Fell View Holiday Park,Accomodation,124050,COMU - Communities,JBC - Homelessness
South Ribble Council,http://Statistics.Data.gov.uk\Doc\Local Authority\30UN,15/06/2023,63.22,Travelodge Preston Central PR1 5NX,NAME REDACTED Travelodge Preston Central PR,Accomodation,124250,COMU - Communities,JBC - Homelessness
South Ribble Council,http://Statistics.Data.gov.uk\Doc\Local Authority\30UN,15/06/2023,63.22,Travelodge Preston Central PR1 5NX,NAME REDACTED Travelodge Preston Central PR,Accomodation,124250,COMU - Communities,JBC - Homelessness
South Ribble Council,http://Statistics.Data.gov.uk\Doc\Local Authority\30UN,15/06/2023,63.22,Travelodge Preston Central PR1 5NX,NAME REDACTED Travelodge Preston Central PR,Accomodation,124250,COMU - Communities,JBC - Homelessness
South Ribble Council,http://Statistics.Data.gov.uk\Doc\Local Authority\30UN,15/06/2023,63.22,Travelodge Preston Central PR1 5NX,NAME REDACTED Travelodge Preston Central PR,Accomodation,124250,COMU - Communities,JBC - Homelessness
South Ribble Council,http://Statistics.Data.gov.uk\Doc\Local Authority\30UN,15/06/2023,445.66,Travelodge Preston Central PR1 5NX,NAME REDACTED Travelodge Preston Central PR,Accomodation,124050,COMU - Communities,JBC - Homelessness
South Ribble Council,http://Statistics.Data.gov.uk\Doc\Local Authority\30UN,19/06/2023,61.18,Travelodge Preston Central PR1 5NX,NAME REDACTED Travelodge Preston Central PR,Accomodation,124250,COMU - Communities,JBC - Homelessness
South Ribble Council,http://Statistics.Data.gov.uk\Doc\Local Authority\30UN,19/06/2023,61.18,Travelodge Preston Central PR1 5NX,NAME REDACTED Travelodge Preston Central PR,Accomodation,124250,COMU - Communities,JBC - Homelessness
South Ribble Council,http://Statistics.Data.gov.uk\Doc\Local Authority\30UN,19/06/2023,87.55,Premier Inn Preston South PR5 6BZ,NAME REDACTED Premier Inn Preston South PR5,Accomodation,124250,COMU - Communities,JBC - Homelessness
South Ribble Council,http://Statistics.Data.gov.uk\Doc\Local Authority\30UN,19/06/2023,87.55,Premier Inn Preston South PR5 6BZ,NAME REDACTED Premier Inn Preston South PR5,Accomodation,124250,COMU - Communities,JBC - Homelessness
South Ribble Council,http://Statistics.Data.gov.uk\Doc\Local Authority\30UN,19/06/2023,87.55,Premier Inn Preston South PR5 6BZ,NAME REDACTED Premier Inn Preston South PR5,Accomodation,124250,COMU - Communities,JBC - Homelessness
South Ribble Council,http://Statistics.Data.gov.uk\Doc\Local Authority\30UN,19/06/2023,366.35,Premier Inn Preston South PR5 6BZ,NAME REDACTED Premier Inn Preston South PR5,Accomodation,124050,COMU - Communities,JBC - Homelessness
South Ribble Council,http://Statistics.Data.gov.uk\Doc\Local Authority\30UN,19/06/2023,366.35,Premier Inn Preston South PR5 6BZ,NAME REDACTED Premier Inn Preston South PR5,Accomodation,124050,COMU - Communities,JBC - Homelessness
South Ribble Council,http://Statistics.Data.gov.uk\Doc\Local Authority\30UN,19/06/2023,484.42,Travelodge Preston Central PR1 5NX,NAME REDACTED Travelodge Preston Central PR,Accomodation,124050,COMU - Communities,JBC - Homelessness
South Ribble Council,http://Statistics.Data.gov.uk\Doc\Local Authority\30UN,20/06/2023,72.25,Premier Inn Blackpool Beach FY1 6BF,NAME REDACTED Premier Inn Blackpool Beach F,Accomodation,124250,COMU - Communities,JBC - Homelessness
South Ribble Council,http://Statistics.Data.gov.uk\Doc\Local Authority\30UN,20/06/2023,98.60,Premier Inn Preston Central PR1 2AB,NAME REDACTED Premier Inn Preston Central P,Accomodation,124250,COMU - Communities,JBC - Homelessness
South Ribble Council,http://Statistics.Data.gov.uk\Doc\Local Authority\30UN,20/06/2023,98.60,Premier Inn Preston Central PR1 2AB,NAME REDACTED Premier Inn Preston Central P,Accomodation,124250,COMU - Communities,JBC - Homelessness
South Ribble Council,http://Statistics.Data.gov.uk\Doc\Local Authority\30UN,22/06/2023,67.15,Premier Inn Chorley North PR6 8AB,NAME REDACTED Premier Inn Chorley North PR6,Accomodation,124250,COMU - Communities,JBC - Homelessness
South Ribble Council,http://Statistics.Data.gov.uk\Doc\Local Authority\30UN,22/06/2023,67.15,Premier Inn Chorley North PR6 8AB,NAME REDACTED Premier Inn Chorley North PR6,Accomodation,124250,COMU - Communities,JBC - Homelessness
South Ribble Council,http://Statistics.Data.gov.uk\Doc\Local Authority\30UN,22/06/2023,67.15,Premier Inn Chorley North PR6 8AB,NAME REDACTED Premier Inn Chorley North PR6,Accomodation,124250,COMU - Communities,JBC - Homelessness
South Ribble Council,http://Statistics.Data.gov.uk\Doc\Local Authority\30UN,22/06/2023,67.15,Premier Inn Chorley North PR6 8AB,NAME REDACTED Premier Inn Chorley North PR6,Accomodation,124250,COMU - Communities,JBC - Homelessness
South Ribble Council,http://Statistics.Data.gov.uk\Doc\Local Authority\30UN,22/06/2023,67.15,Premier Inn Chorley North PR6 8AB,NAME REDACTED Premier Inn Chorley North PR6,Accomodation,124250,COMU - Communities,JBC - Homelessness
South Ribble Council,http://Statistics.Data.gov.uk\Doc\Local Authority\30UN,22/06/2023,243.00,Farington Lodge Hotel,NAME REDACTED at Farington Lodge Hotel,Accomodation,124250,COMU - Communities,JBC - Homelessness
South Ribble Council,http://Statistics.Data.gov.uk\Doc\Local Authority\30UN,22/06/2023,605.50,Premier Inn Preston South PR5 6BZ,NAME REDACTED Premier Inn Preston South PR5,Accomodation,124050,COMU - Communities,JBC - Homelessness
South Ribble Council,http://Statistics.Data.gov.uk\Doc\Local Authority\30UN,27/06/2023,510.94,Travelodge Preston Central PR1 5NX,NAME REDACTED Travelodge Preston Central PR,Accomodation,124050,COMU - Communities,JBC - Homelessness
South Ribble Council,http://Statistics.Data.gov.uk\Doc\Local Authority\30UN,03/04/2023,62.20,Travelodge Southport PR8 1RN,NAME REDACTED Travelodge Southport PR8 1RN ,Accomodation,124250,COMU - Communities,JBC - Homelessness
South Ribble Council,http://Statistics.Data.gov.uk\Doc\Local Authority\30UN,04/04/2023,89.25,Premier Inn Blackburn Town Centre BB11FB,NAME REDACTED Premier Inn Blackburn Town Ce,Accomodation,124250,COMU - Communities,JBC - Homelessness
South Ribble Council,http://Statistics.Data.gov.uk\Doc\Local Authority\30UN,05/04/2023,76.50,Premier Inn Southport Central PR8 1RY,NAME REDACTED Premier Inn Southport Central,Accomodation,124250,COMU - Communities,JBC - Homelessness
South Ribble Council,http://Statistics.Data.gov.uk\Doc\Local Authority\30UN,05/04/2023,171.50,Tesco,"Tesco Online Groceries Order - 05.04.23 - Cotswold House RSP snacks, drinks ",Online Purchase,124250,COMU - Communities,JBC - Homelessness
South Ribble Council,http://Statistics.Data.gov.uk\Doc\Local Authority\30UN,05/04/2023,492.00,Premier Inn Preston Central PR1 2AB,NAME REDACTED Premier Inn Preston Central P,Accomodation,124050,COMU - Communities,JBC - Homelessness
South Ribble Council,http://Statistics.Data.gov.uk\Doc\Local Authority\30UN,11/04/2023,49.50,Tesco,NAME REDACTED co Online Groceries Order - 1,Online Purchase,124250,COMU - Communities,JBC - Homelessness
South Ribble Council,http://Statistics.Data.gov.uk\Doc\Local Authority\30UN,11/04/2023,523.50,Premier Inn Preston Central PR1 2AB,NAME REDACTED Premier Inn Preston Central P,Accomodation,124050,COMU - Communities,JBC - Homelessness
South Ribble Council,http://Statistics.Data.gov.uk\Doc\Local Authority\30UN,12/04/2023,118.30,Travelodge Southport PR8 1RN,NAME REDACTED Travelodge Southport PR8 1RN ,Accomodation,124250,COMU - Communities,JBC - Homelessness
South Ribble Council,http://Statistics.Data.gov.uk\Doc\Local Authority\30UN,13/04/2023,101.98,Travelodge Southport PR8 1RN,NAME REDACTED Travelodge Southport PR8 1RN ,Accomodation,124250,COMU - Communities,JBC - Homelessness
South Ribble Council,http://Statistics.Data.gov.uk\Doc\Local Authority\30UN,14/04/2023,203.96,Travelodge Southport PR8 1RN,NAME REDACTED Travelodge Southport PR8 1RN ,Accomodation,124250,COMU - Communities,JBC - Homelessness
South Ribble Council,http://Statistics.Data.gov.uk\Doc\Local Authority\30UN,14/04/2023,211.65,Premier Inn Preston South PR5 6BZ,NAME REDACTED Premier Inn Preston South PR5,Accomodation,124250,COMU - Communities,JBC - Homelessness
South Ribble Council,http://Statistics.Data.gov.uk\Doc\Local Authority\30UN,14/04/2023,591.00,Premier Inn Preston South PR5 6BZ,NAME REDACTED Premier Inn Preston South PR5,Accomodation,124050,COMU - Communities,JBC - Homelessness
South Ribble Council,http://Statistics.Data.gov.uk\Doc\Local Authority\30UN,14/04/2023,721.00,Holiday Inn Express Preston South PR58AA,NAME REDACTED Holiday Inn Express Preston S,Accomodation,124050,COMU - Communities,JBC - Homelessness
South Ribble Council,http://Statistics.Data.gov.uk\Doc\Local Authority\30UN,15/04/2023,-516.00,Premier Inn,refund from premier inn,Refund,124050,COMU - Communities,JBC - Homelessness
South Ribble Council,http://Statistics.Data.gov.uk\Doc\Local Authority\30UN,15/04/2023,573.00,Premier Inn Preston South PR5 6BZ,NAME REDACTED Premier Inn Preston South PR5,Accomodation,124050,COMU - Communities,JBC - Homelessness
South Ribble Council,http://Statistics.Data.gov.uk\Doc\Local Authority\30UN,17/04/2023,43.84,Travelodge Southport PR8 1RN,NAME REDACTED Travelodge Southport PR8 1RN ,Accomodation,124250,COMU - Communities,JBC - Homelessness
South Ribble Council,http://Statistics.Data.gov.uk\Doc\Local Authority\30UN,18/04/2023,-197.00,Premier Inn,refund from premier inn,Refund,124050,COMU - Communities,JBC - Homelessness
South Ribble Council,http://Statistics.Data.gov.uk\Doc\Local Authority\30UN,18/04/2023,85.85,Premier Inn Preston Central PR1 2AB,NAME REDACTED Premier Inn Preston Central P,Accomodation,124050,COMU - Communities,JBC - Homelessness
South Ribble Council,http://Statistics.Data.gov.uk\Doc\Local Authority\30UN,18/04/2023,771.50,Premier Inn Preston South PR5 6BZ,NAME REDACTED Premier Inn Preston South PR5,Accomodation,124050,COMU - Communities,JBC - Homelessness
South Ribble Council,http://Statistics.Data.gov.uk\Doc\Local Authority\30UN,18/04/2023,"1,285.00",Premier Inn Preston South PR5 6BZ,NAME REDACTED and MP Premier Inn Preston So,Accomodation,124050,COMU - Communities,JBC - Homelessness
South Ribble Council,http://Statistics.Data.gov.uk\Doc\Local Authority\30UN,19/04/2023,-511.00,Holiday Inn Express Preston South PR58AA,refund issued to us by Holiday Inn Express Preston South PR5 8AA,Refund,124050,COMU - Communities,JBC - Homelessness
South Ribble Council,http://Statistics.Data.gov.uk\Doc\Local Authority\30UN,19/04/2023,493.60,Travelodge Preston Central PR1 5NX,NAME REDACTED Travelodge Preston Central PR,Accomodation,124050,COMU - Communities,JBC - Homelessness
South Ribble Council,http://Statistics.Data.gov.uk\Doc\Local Authority\30UN,27/04/2023,100.00,Premier Inn Preston South PR5 6BZ,NAME REDACTED fine for smoking in room at P,Accomodation,124050,COMU - Communities,JBC - Homelessness
South Ribble Council,http://Statistics.Data.gov.uk\Doc\Local Authority\30UN,02/05/2023,71.40,Premier Inn Bolton Stadium Arena BL6 6LB,NAME REDACTED Premier Inn Bolton Stadium Ar,Accomodation,124250,COMU - Communities,JBC - Homelessness
South Ribble Council,http://Statistics.Data.gov.uk\Doc\Local Authority\30UN,05/05/2023,541.50,Premier Inn Preston Central PR1 2AB,NAME REDACTED Premier Inn Preston Central P,Accomodation,124050,COMU - Communities,JBC - Homelessness
South Ribble Council,http://Statistics.Data.gov.uk\Doc\Local Authority\30UN,09/05/2023,546.00,Premier Inn Preston Central PR1 2AB,NAME REDACTED Premier Inn Preston Central P,Accomodation,124050,COMU - Communities,JBC - Homelessness
South Ribble Council,http://Statistics.Data.gov.uk\Doc\Local Authority\30UN,09/05/2023,546.00,Premier Inn Preston Central PR1 2AB,NAME REDACTED Premier Inn Preston Central P,Accomodation,124050,COMU - Communities,JBC - Homelessness
South Ribble Council,http://Statistics.Data.gov.uk\Doc\Local Authority\30UN,10/05/2023,356.92,Travelodge Preston Central PR1 5NX,NAME REDACTED Travelodge Preston Central PR,Accomodation,124050,COMU - Communities,JBC - Homelessness
South Ribble Council,http://Statistics.Data.gov.uk\Doc\Local Authority\30UN,11/05/2023,510.00,Premier Inn Preston South PR5 6BZ,NAME REDACTED Premier Inn Preston South PR5,Accomodation,124050,COMU - Communities,JBC - Homelessness
South Ribble Council,http://Statistics.Data.gov.uk\Doc\Local Authority\30UN,12/05/2023,204.85,Premier Inn Preston Central PR1 2AB,NAME REDACTED Premier Inn Preston Central P,Accomodation,124050,COMU - Communities,JBC - Homelessness
South Ribble Council,http://Statistics.Data.gov.uk\Doc\Local Authority\30UN,17/05/2023,88.40,Premier Inn Preston South PR5 6BZ,NAME REDACTED Premier Inn Preston South PR5,Accomodation,124050,COMU - Communities,JBC - Homelessness
South Ribble Council,http://Statistics.Data.gov.uk\Doc\Local Authority\30UN,17/05/2023,147.90,Premier Inn Preston Central PR1 2AB,NAME REDACTED Premier Inn Preston Central P,Accomodation,124050,COMU - Communities,JBC - Homelessness
South Ribble Council,http://Statistics.Data.gov.uk\Doc\Local Authority\30UN,17/05/2023,433.42,Travelodge Preston Central PR1 5NX,NAME REDACTED Travelodge Preston Central PR,Accomodation,124050,COMU - Communities,JBC - Homelessness
South Ribble Council,http://Statistics.Data.gov.uk\Doc\Local Authority\30UN,18/05/2023,150.00,The Queens Lytham,NAME REDACTED The Queens Lytham FY8 5LB 18.,Accomodation,124050,COMU - Communities,JBC - Homelessness
South Ribble Council,http://Statistics.Data.gov.uk\Doc\Local Authority\30UN,18/05/2023,327.34,Travelodge Preston Central PR1 5NX,NAME REDACTED Travelodge Preston Central PR,Accomodation,124050,COMU - Communities,JBC - Homelessness
South Ribble Council,http://Statistics.Data.gov.uk\Doc\Local Authority\30UN,19/05/2023,204.85,Premier Inn Preston Central PR1 2AB,NAME REDACTED Premier Inn Preston Central P,Accomodation,124050,COMU - Communities,JBC - Homelessness
South Ribble Council,http://Statistics.Data.gov.uk\Doc\Local Authority\30UN,19/05/2023,329.00,Beacon Fell View Holiday Park,NAME REDACTED Beacon Fell View Holiday Park,Accomodation,124050,COMU - Communities,JBC - Homelessness
South Ribble Council,http://Statistics.Data.gov.uk\Doc\Local Authority\30UN,24/05/2023,-147.90,Premier Inn,NAME REDACTED und from Premier Inn,Accomodation,124050,COMU - Communities,JBC - Homelessness
South Ribble Council,http://Statistics.Data.gov.uk\Doc\Local Authority\30UN,24/05/2023,147.90,Premier Inn Preston South PR5 6BZ,NAME REDACTED Premier Inn Preston South Craven Drive PR5 6BZ ,Accomodation,124050,COMU - Communities,JBC - Homelessness
South Ribble Council,http://Statistics.Data.gov.uk\Doc\Local Authority\30UN,24/05/2023,421.18,Travelodge Preston Central PR1 5NX,NAME REDACTED Travelodge Preston Central PR,Accomodation,124050,COMU - Communities,JBC - Homelessness
South Ribble Council,http://Statistics.Data.gov.uk\Doc\Local Authority\30UN,26/05/2023,260.10,Premier Inn Burnley BB20 3EF,NAME REDACTED Premier Inn Burnley BB20 3EF ,Accomodation,124050,COMU - Communities,JBC - Homelessness
South Ribble Council,http://Statistics.Data.gov.uk\Doc\Local Authority\30UN,26/05/2023,304.30,Premier Inn Bolton Stadium Arena BL6 6LB,NAME REDACTED Premier Inn Bolton Stadium Ar,Accomodation,124050,COMU - Communities,JBC - Homelessness
South Ribble Council,http://Statistics.Data.gov.uk\Doc\Local Authority\30UN,30/05/2023,136.00,Premier Inn Preston Central PR1 2AB,NAME REDACTED Premier Inn Preston Central P,Accomodation,124050,COMU - Communities,JBC - Homelessness
South Ribble Council,http://Statistics.Data.gov.uk\Doc\Local Authority\30UN,30/05/2023,160.65,Premier Inn Burnley BB20 3EF,NAME REDACTED Premier Inn Burnley BB20 3EF ,Accomodation,124050,COMU - Communities,JBC - Homelessness
South Ribble Council,http://Statistics.Data.gov.uk\Doc\Local Authority\30UN,30/05/2023,202.30,Premier Inn Preston Central PR1 2AB,NAME REDACTED Premier Inn Preston Central P,Accomodation,124050,COMU - Communities,JBC - Homelessness
South Ribble Council,http://Statistics.Data.gov.uk\Doc\Local Authority\30UN,30/05/2023,515.00,Premier Inn Preston Central PR1 2AB,NAME REDACTED Premier Inn Preston Central P,Accomodation,124050,COMU - Communities,JBC - Homelessness
South Ribble Council,http://Statistics.Data.gov.uk\Doc\Local Authority\30UN,30/05/2023,600.00,Beacon Fell View Holiday Park,NAME REDACTED Beacon Fell View Holiday Park,Accomodation,124050,COMU - Communities,JBC - Homelessness
South Ribble Council,http://Statistics.Data.gov.uk\Doc\Local Authority\30UN,31/05/2023,479.32,Travelodge Preston Central PR1 5NX,NAME REDACTED Travelodge Preston Central PR,Accomodation,124050,COMU - Communities,JBC - Homelessness
South Ribble Council,http://Statistics.Data.gov.uk\Doc\Local Authority\30UN,01/06/2023,338.30,Premier Inn Blackburn Town Centre BB11FB,NAME REDACTED Premier Inn Blackburn Town Ce,Accomodation,124050,COMU - Communities,JBC - Homelessness
South Ribble Council,http://Statistics.Data.gov.uk\Doc\Local Authority\30UN,02/06/2023,461.98,Travelodge Preston Central PR1 5NX,NAME REDACTED Travelodge Preston Central PR,Accomodation,124050,COMU - Communities,JBC - Homelessness
South Ribble Council,http://Statistics.Data.gov.uk\Doc\Local Authority\30UN,05/06/2023,83.30,Premier Inn Preston Central PR1 2AB,NAME REDACTED Premier Inn Preston Central P,Accomodation,124250,COMU - Communities,JBC - Homelessness
South Ribble Council,http://Statistics.Data.gov.uk\Doc\Local Authority\30UN,05/06/2023,83.30,Premier Inn Preston Central PR1 2AB,NAME REDACTED Premier Inn Preston Central P,Accomodation,124250,COMU - Communities,JBC - Homelessness
South Ribble Council,http://Statistics.Data.gov.uk\Doc\Local Authority\30UN,05/06/2023,85.00,Premier Inn Preston Central PR1 2AB,NAME REDACTED  Premier Inn Preston Central ,Accomodation,124250,COMU - Communities,JBC - Homelessness
South Ribble Council,http://Statistics.Data.gov.uk\Doc\Local Authority\30UN,05/06/2023,600.00,Beacon Fell View Holiday Park,NAME REDACTED Beacon Fell View Holiday Park,Accomodation,124050,COMU - Communities,JBC - Homelessness
South Ribble Council,http://Statistics.Data.gov.uk\Doc\Local Authority\30UN,06/06/2023,98.60,Premier Inn Preston Central PR1 2AB,NAME REDACTED Premier Inn Preston Central P,Accomodation,124250,COMU - Communities,JBC - Homelessness
South Ribble Council,http://Statistics.Data.gov.uk\Doc\Local Authority\30UN,06/06/2023,98.60,Premier Inn Preston Central PR1 2AB,NAME REDACTED Premier Inn Preston Central P,Accomodation,124250,COMU - Communities,JBC - Homelessness
South Ribble Council,http://Statistics.Data.gov.uk\Doc\Local Authority\30UN,06/06/2023,101.15,Premier Inn Preston Central PR1 2AB,NAME REDACTED Premier Inn Preston Central P,Accomodation,124250,COMU - Communities,JBC - Homelessness
South Ribble Council,http://Statistics.Data.gov.uk\Doc\Local Authority\30UN,06/06/2023,238.00,Premier Inn Burnley BB10 3EF,NAME REDACTED Premier Inn Burnley BB10 3EF ,Accomodation,124050,COMU - Communities,JBC - Homelessness
South Ribble Council,http://Statistics.Data.gov.uk\Doc\Local Authority\30UN,06/06/2023,600.00,Beacon Fell View Holiday Park,NAME REDACTED Beacon Fell View Holiday Park,Accomodation,124050,COMU - Communities,JBC - Homelessness
South Ribble Council,http://Statistics.Data.gov.uk\Doc\Local Authority\30UN,06/06/2023,616.00,Premier Inn Preston South PR5 6BZ,NAME REDACTED Premier Inn Preston South PR5,Accomodation,124050,COMU - Communities,JBC - Homelessness
South Ribble Council,http://Statistics.Data.gov.uk\Doc\Local Authority\30UN,06/06/2023,883.17,Travelodge Preston Central PR1 5NX,NAME REDACTED Travelodge Preston Central PR,Accomodation,124050,COMU - Communities,JBC - Homelessness
South Ribble Council,http://Statistics.Data.gov.uk\Doc\Local Authority\30UN,19/06/2023,65.26,Travelodge Preston Central PR1 5NX,NAME REDACTED Travelodge Preston Central PR,Accomodation,124250,COMU - Communities,JBC - Homelessness
South Ribble Council,http://Statistics.Data.gov.uk\Doc\Local Authority\30UN,19/06/2023,65.26,Travelodge Preston Central PR1 5NX,NAME REDACTED Travelodge Preston Central PR,Accomodation,124250,COMU - Communities,JBC - Homelessness
South Ribble Council,http://Statistics.Data.gov.uk\Doc\Local Authority\30UN,23/06/2023,-62.00,Premier Inn Bolton Stadium Arena BL6 6LB,partial refund - NAME REDACTED Premier Inn Bolton Stadium Arena BL6 6LB,Accomodation,124050,COMU - Communities,JBC - Homelessness
South Ribble Council,http://Statistics.Data.gov.uk\Doc\Local Authority\30UN,23/06/2023,482.38,Travelodge Preston Central PR1 5NX,NAME REDACTED Travelodge Preston Central PR,Accomodation,124050,COMU - Communities,JBC - Homelessness
South Ribble Council,http://Statistics.Data.gov.uk\Doc\Local Authority\30UN,23/06/2023,503.00,Premier Inn Bolton Stadium Arena BL6 6LB,NAME REDACTED Premier Inn Bolton Stadium Ar,Accomodation,124050,COMU - Communities,JBC - Homelessness
South Ribble Council,http://Statistics.Data.gov.uk\Doc\Local Authority\30UN,23/06/2023,503.00,Premier Inn Bolton Stadium Arena BL6 6LB,NAME REDACTED Premier Inn Bolton Stadium Ar,Accomodation,124050,COMU - Communities,JBC - Homelessness
South Ribble Council,http://Statistics.Data.gov.uk\Doc\Local Authority\30UN,23/06/2023,640.00,Premier Inn Preston South PR5 6BZ,NAME REDACTED Premier Inn Preston South PR5,Accomodation,124050,COMU - Communities,JBC - Homelessness
South Ribble Council,http://Statistics.Data.gov.uk\Doc\Local Authority\30UN,27/06/2023,96.88,Travelodge Preston Central PR1 5NX,NAME REDACTED Travelodge Preston Central PR,Accomodation,124250,COMU - Communities,JBC - Homelessness
South Ribble Council,http://Statistics.Data.gov.uk\Doc\Local Authority\30UN,27/06/2023,101.15,Premier Inn Chorley North PR6 8AB,NAME REDACTED Premier Inn Chorley North PR6,Accomodation,124250,COMU - Communities,JBC - Homelessness
South Ribble Council,http://Statistics.Data.gov.uk\Doc\Local Authority\30UN,27/06/2023,101.15,Premier Inn Preston Central PR1 2AB,NAME REDACTED Premier Inn Preston Central P,Accomodation,124250,COMU - Communities,JBC - Homelessness
South Ribble Council,http://Statistics.Data.gov.uk\Doc\Local Authority\30UN,27/06/2023,635.50,Premier Inn Chorley North PR6 8AB,NAME REDACTED Premier Inn Chorley North PR6,Accomodation,124050,COMU - Communities,JBC - Homelessness
South Ribble Council,http://Statistics.Data.gov.uk\Doc\Local Authority\30UN,06/04/2023,237.60,Westminster Insight,Westminster Insight - Transforming Services for Victims Digital Conference 27.06.23 LS,Online Purchase,124950,COMU - Communities,JBC - Homelessness
South Ribble Council,http://Statistics.Data.gov.uk\Doc\Local Authority\30UN,06/04/2023,302.40,Westminster Insight,Westminster Insight - Tackling Domestic Abuse Digital Conference 25.05.23,Online Purchase,124950,COMU - Communities,JBC - Homelessness
South Ribble Council,http://Statistics.Data.gov.uk\Doc\Local Authority\30UN,20/04/2023,483.00,Winckley Square Residences PR1 3NA,NAME REDACTED Winckley Square Residences PR,Accomodation,124050,COMU - Communities,JBC - Homelessness
South Ribble Council,http://Statistics.Data.gov.uk\Doc\Local Authority\30UN,27/04/2023,483.00,Winckley Square Residences PR1 3NA,NAME REDACTED Winckley Square Residences PR,Accomodation,124050,COMU - Communities,JBC - Homelessness
South Ribble Council,http://Statistics.Data.gov.uk\Doc\Local Authority\30UN,27/04/2023,537.50,Premier Inn Preston North PR3 0RE,NAME REDACTED Premier Inn Preston North PR3,Accomodation,124050,COMU - Communities,JBC - Homelessness
South Ribble Council,http://Statistics.Data.gov.uk\Doc\Local Authority\30UN,29/04/2023,-463.50,Premier Inn Preston North,Refund - booking cancellation - NAME REDACTED Premier Inn Preston North 29.04.23 - 05.05.23 LS,Refund,124050,COMU - Communities,JBC - Homelessness
South Ribble Council,http://Statistics.Data.gov.uk\Doc\Local Authority\30UN,25/05/2023,483.00,Winckley Square Residences PR1 3NA,NAME REDACTED Winckley Square Residences PR,Accomodation,124050,COMU - Communities,JBC - Homelessness
South Ribble Council,http://Statistics.Data.gov.uk\Doc\Local Authority\30UN,01/06/2023,40.00,Safer Places Professional Training &,`Supporting Victims from the Gypsy and Travelling Community` training,Online Purchase,124950,COMU - Communities,JBC - Homelessness
South Ribble Council,http://Statistics.Data.gov.uk\Doc\Local Authority\30UN,13/06/2023,431.38,Travelodge Preston Central PR1 5NX,NAME REDACTED Travelodge Preston Central PR,Accomodation,124050,COMU - Communities,JBC - Homelessness
South Ribble Council,http://Statistics.Data.gov.uk\Doc\Local Authority\30UN,13/06/2023,600.00,Premier Inn Preston South PR5 6BZ,NAME REDACTED Premier Inn Preston South PR5,Accomodation,124050,COMU - Communities,JBC - Homelessness
South Ribble Council,http://Statistics.Data.gov.uk\Doc\Local Authority\30UN,20/06/2023,61.18,ravelodge Preston Central PR1 5NX,NAME REDACTED Travelodge Preston Central PR,Accomodation,124250,COMU - Communities,JBC - Homelessness
South Ribble Council,http://Statistics.Data.gov.uk\Doc\Local Authority\30UN,20/06/2023,609.00,Premier Inn Preston South PR5 6BZ,NAME REDACTED Premier Inn Preston South PR5,Accomodation,124050,COMU - Communities,JBC - Homelessness
South Ribble Council,http://Statistics.Data.gov.uk\Doc\Local Authority\30UN,21/06/2023,-95.20,Premier Inn Preston Central PR1 2AB,refund - NAME REDACTED Premier Inn Preston Central PR1 2AB 21.06.23 - 22.06.23 LS,Refund,124250,COMU - Communities,JBC - Homelessness
South Ribble Council,http://Statistics.Data.gov.uk\Doc\Local Authority\30UN,21/06/2023,95.20,Premier Inn Preston Central PR1 2AB,NAME REDACTED Premier Inn Preston Central P,Accomodation,124250,COMU - Communities,JBC - Homelessness
South Ribble Council,http://Statistics.Data.gov.uk\Doc\Local Authority\30UN,21/06/2023,95.20,Premier Inn Preston Central PR1 2AB,NAME REDACTED Premier Inn Preston Central P,Accomodation,124250,COMU - Communities,JBC - Homelessness
South Ribble Council,http://Statistics.Data.gov.uk\Doc\Local Authority\30UN,21/06/2023,100.30,Premier Inn Preston South PR5 6BZ,NAME REDACTED Premier Inn Preston South PR5,Accomodation,124250,COMU - Communities,JBC - Homelessness
South Ribble Council,http://Statistics.Data.gov.uk\Doc\Local Authority\30UN,21/06/2023,100.30,Premier Inn Preston South PR5 6BZ,NAME REDACTED Premier Inn Preston South PR5,Accomodation,124250,COMU - Communities,JBC - Homelessness
South Ribble Council,http://Statistics.Data.gov.uk\Doc\Local Authority\30UN,21/06/2023,100.30,Premier Inn Preston South PR5 6BZ,NAME REDACTED Premier Inn Preston South PR5,Accomodation,124250,COMU - Communities,JBC - Homelessness
South Ribble Council,http://Statistics.Data.gov.uk\Doc\Local Authority\30UN,21/06/2023,126.45,Travelodge Preston Central PR1 5NX,NAME REDACTED Travelodge Preston Central PR,Accomodation,124050,COMU - Communities,JBC - Homelessness
South Ribble Council,http://Statistics.Data.gov.uk\Doc\Local Authority\30UN,21/06/2023,519.10,Travelodge Preston Central PR1 5NX,NAME REDACTED Travelodge Preston Central PR,Accomodation,124050,COMU - Communities,JBC - Homelessness
South Ribble Council,http://Statistics.Data.gov.uk\Doc\Local Authority\30UN,29/06/2023,79.05,Premier Inn Preston South PR5 6BZ,NAME REDACTED Premier Inn Preston South PR5,Accomodation,124250,COMU - Communities,JBC - Homelessness
South Ribble Council,http://Statistics.Data.gov.uk\Doc\Local Authority\30UN,30/06/2023,476.26,Travelodge Preston Central PR1 5NX,NAME REDACTED Travelodge Preston Central PR,Accomodation,124050,COMU - Communities,JBC - Homelessness
South Ribble Council,http://Statistics.Data.gov.uk\Doc\Local Authority\30UN,22/06/2023,24.05,Tesco,Refreshments for evacuated residents from Nursery Close Leyland,Store Purchase,171600,CDIG - Customer & Digital,JCD - Neighbourhoods
South Ribble Council,http://Statistics.Data.gov.uk\Doc\Local Authority\30UN,26/04/2023,322.50,DVLA,Road Tax April 2023 - VIN REDACTED,Online Purchase,172400,CDIG - Customer & Digital,JCE - Transport
South Ribble Council,http://Statistics.Data.gov.uk\Doc\Local Authority\30UN,26/05/2023,302.50,DVLA,Road tax May 2023 - VIN REDACTED,Online Purchase,172840,CDIG - Customer & Digital,JCE - Transport
South Ribble Council,http://Statistics.Data.gov.uk\Doc\Local Authority\30UN,02/06/2023,302.50,DVLA,Road tax May 2023 - VIN REDACTED (Taxed late at Broadfield Drive Post Office due to MOT test date),Road Tax,172840,CDIG - Customer & Digital,JCE - Transport
South Ribble Council,http://Statistics.Data.gov.uk\Doc\Local Authority\30UN,27/06/2023,152.50,DVLA,Road tax June 2023 - VIN REDACTED,Online Purchase,172840,CDIG - Customer & Digital,JCE - Transport
South Ribble Council,http://Statistics.Data.gov.uk\Doc\Local Authority\30UN,27/06/2023,322.50,DVLA,Road tax June 2023 - VIN REDACTED,Online Purchase,171200,CDIG - Customer & Digital,JCE - Transport
South Ribble Council,http://Statistics.Data.gov.uk\Doc\Local Authority\30UN,27/06/2023,322.50,DVLA,Road tax June 2023 - VIN REDACTED,Online Purchase,171200,CDIG - Customer & Digital,JCE - Transport
South Ribble Council,http://Statistics.Data.gov.uk\Doc\Local Authority\30UN,27/06/2023,322.50,DVLA,Road tax June 2023 - VIN REDACTED,Online Purchase,171200,CDIG - Customer & Digital,JCE - Transport
South Ribble Council,http://Statistics.Data.gov.uk\Doc\Local Authority\30UN,27/06/2023,322.50,DVLA,Road tax June 2023 - VIN REDACTED,Online Purchase,171200,CDIG - Customer & Digital,JCE - Transport
South Ribble Council,http://Statistics.Data.gov.uk\Doc\Local Authority\30UN,28/06/2023,302.50,DVLA,Road tax June 2023 - VIN REDACTED,Online Purchase,172840,CDIG - Customer & Digital,JCE - Transport
South Ribble Council,http://Statistics.Data.gov.uk\Doc\Local Authority\30UN,03/04/2023,5.45,Morrisons,Interview expenses - lunch,Store Purchase,114800,COMU - Communities,JBA - Community Involvement
South Ribble Council,http://Statistics.Data.gov.uk\Doc\Local Authority\30UN,03/04/2023,20.17,Subway,"Interview expenses, lunch",Store Purchase,114800,COMU - Communities,JBA - Community Involvement
South Ribble Council,http://Statistics.Data.gov.uk\Doc\Local Authority\30UN,04/04/2023,24.16,Haus of Dolci,Interview expenses - lunch,Store Purchase,114800,COMU - Communities,JBA - Community Involvement
South Ribble Council,http://Statistics.Data.gov.uk\Doc\Local Authority\30UN,06/04/2023,8.60,Berrys,Tie wraps for community work,Store Purchase,114800,COMU - Communities,JBA - Community Involvement
South Ribble Council,http://Statistics.Data.gov.uk\Doc\Local Authority\30UN,11/04/2023,48.84,Subway,Lunch - communities business planning,Store Purchase,114800,COMU - Communities,JBA - Community Involvement
South Ribble Council,http://Statistics.Data.gov.uk\Doc\Local Authority\30UN,24/04/2023,143.02,MandJ Distributors,Equipment for bike fix,Online Purchase,113100,COMU - Communities,JBA - Community Involvement
South Ribble Council,http://Statistics.Data.gov.uk\Doc\Local Authority\30UN,25/04/2023,153.75,ARGOS,Household essentials for refugees,Online Purchase,144200,COMU - Communities,JBA - Community Involvement
South Ribble Council,http://Statistics.Data.gov.uk\Doc\Local Authority\30UN,10/05/2023,136.25,Matalan,Clothes and items for Asylum seekers at the hotel,Store Purchase,144200,COMU - Communities,JBA - Community Involvement
South Ribble Council,http://Statistics.Data.gov.uk\Doc\Local Authority\30UN,11/05/2023,25.78,Tesco,Volunteer refreshments for Penwortham Live,Store Purchase,114800,COMU - Communities,JBA - Community Involvement
South Ribble Council,http://Statistics.Data.gov.uk\Doc\Local Authority\30UN,12/05/2023,14.00,Salvatores,Refreshments for Penwortham Live,Store Purchase,114800,COMU - Communities,JBA - Community Involvement
South Ribble Council,http://Statistics.Data.gov.uk\Doc\Local Authority\30UN,13/05/2023,5.40,Spar,Refreshments for Penwortham Live,Store Purchase,114800,COMU - Communities,JBA - Community Involvement
South Ribble Council,http://Statistics.Data.gov.uk\Doc\Local Authority\30UN,13/05/2023,9.80,Tesco,Refreshments for Penwortham Live,Store Purchase,114800,COMU - Communities,JBA - Community Involvement
South Ribble Council,http://Statistics.Data.gov.uk\Doc\Local Authority\30UN,26/05/2023,70.98,Amazon,Items for Dance From The Heart event,Online Purchase,113100,COMU - Communities,JBA - Community Involvement
South Ribble Council,http://Statistics.Data.gov.uk\Doc\Local Authority\30UN,01/06/2023,69.70,Premier Inn,"2 night accommodation at Premier Inn, Preston Central, on behalf of New Progress",Accomodation,124050,CDIG - Customer & Digital,JCD - Neighbourhoods
South Ribble Council,http://Statistics.Data.gov.uk\Doc\Local Authority\30UN,04/05/2023,38.28,Skiddle,Paper Tickets from Skiddle for Music in the Park,Online Purchase,114150,POLY - Policy,JFA - Communications & Visitor
South Ribble Council,http://Statistics.Data.gov.uk\Doc\Local Authority\30UN,16/05/2023,197.64,Amazon Web Services EMEA SARL,Amazon Video products,Online Purchase,115250,POLY - Policy,JFA - Communications & Visitor
South Ribble Council,http://Statistics.Data.gov.uk\Doc\Local Authority\30UN,28/05/2023,103.88,Morrisons,Music in the Park refreshments,Store Purchase,114150,POLY - Policy,JFA - Communications & Visitor
South Ribble Council,http://Statistics.Data.gov.uk\Doc\Local Authority\30UN,28/05/2023,118.80,Tesco,Music in the park Toilet Roll,Store Purchase,114150,POLY - Policy,JFA - Communications & Visitor
South Ribble Council,http://Statistics.Data.gov.uk\Doc\Local Authority\30UN,24/04/2023,14.97,Amazon,Letter openers,Online Purchase,143500,GOVE - Governance,JDC - Corporate Support
South Ribble Council,http://Statistics.Data.gov.uk\Doc\Local Authority\30UN,27/04/2023,175.50,Post Office,Mailing out urgent documents that Whistl don`t accept,Store Purchase,143500,GOVE - Governance,JDC - Corporate Support
South Ribble Council,http://Statistics.Data.gov.uk\Doc\Local Authority\30UN,28/04/2023,714.00,PLACE NORTH WEST,Job advert,Online Purchase,125600,GOVE - Governance,JDC - Corporate Support
South Ribble Council,http://Statistics.Data.gov.uk\Doc\Local Authority\30UN,01/06/2023,2.50,Royal Mail,Postage Charge,Online Purchase,141100,GOVE - Governance,JDC - Corporate Support
South Ribble Council,http://Statistics.Data.gov.uk\Doc\Local Authority\30UN,20/06/2023,17.00,Everglades Nurseries,Plants - Mayoral,Store Purchase,143750,GOVE - Governance,JDC - Corporate Support
South Ribble Council,http://Statistics.Data.gov.uk\Doc\Local Authority\30UN,26/06/2023,16.09,Amazon,Label Printer Cartridge,Online Purchase,141100,GOVE - Governance,JDC - Corporate Support
South Ribble Council,http://Statistics.Data.gov.uk\Doc\Local Authority\30UN,28/06/2023,60.20,Tesco,Items for SR - All about us,Store Purchase,126601,GOVE - Governance,JDC - Corporate Support
South Ribble Council,http://Statistics.Data.gov.uk\Doc\Local Authority\30UN,10/04/2023,9.00,EE,Mobile top up waste,Online Purchase,133000,CDIG - Customer & Digital,JCC - Information Services
South Ribble Council,http://Statistics.Data.gov.uk\Doc\Local Authority\30UN,11/04/2023,10.00,Vodafone,Vesta mobile top up,Online Purchase,133000,CDIG - Customer & Digital,JCC - Information Services
South Ribble Council,http://Statistics.Data.gov.uk\Doc\Local Authority\30UN,11/04/2023,"2,996.16",Microsoft,Microsoft cloud storage,Online Purchase,133000,CDIG - Customer & Digital,JCC - Information Services
South Ribble Council,http://Statistics.Data.gov.uk\Doc\Local Authority\30UN,16/04/2023,72.17,Scribe,scribe.how/b,Online Purchase,133000,CDIG - Customer & Digital,JCC - Information Services
South Ribble Council,http://Statistics.Data.gov.uk\Doc\Local Authority\30UN,24/04/2023,233.82,Zoom Video Communications,Zoom,Online Purchase,133000,CDIG - Customer & Digital,JCC - Information Services
South Ribble Council,http://Statistics.Data.gov.uk\Doc\Local Authority\30UN,26/04/2023,11.89,Ontopup,Mobile top up waste,Online Purchase,133000,CDIG - Customer & Digital,JCC - Information Services
South Ribble Council,http://Statistics.Data.gov.uk\Doc\Local Authority\30UN,26/04/2023,23.78,Ontopup,Ontopup for waste,Online Purchase,133000,CDIG - Customer & Digital,JCC - Information Services
South Ribble Council,http://Statistics.Data.gov.uk\Doc\Local Authority\30UN,26/04/2023,35.67,Ontopup,Ontopup for waste,Online Purchase,133000,CDIG - Customer & Digital,JCC - Information Services
South Ribble Council,http://Statistics.Data.gov.uk\Doc\Local Authority\30UN,10/05/2023,9.00,EE,EE top up,Online Purchase,133000,CDIG - Customer & Digital,JCC - Information Services
South Ribble Council,http://Statistics.Data.gov.uk\Doc\Local Authority\30UN,11/05/2023,"2,850.66",Microsoft,Microsoft cloud,Online Purchase,133000,CDIG - Customer & Digital,JCC - Information Services
South Ribble Council,http://Statistics.Data.gov.uk\Doc\Local Authority\30UN,06/06/2023,7.50,CPanel,CPanel web,Online Purchase,133000,CDIG - Customer & Digital,JCC - Information Services
South Ribble Council,http://Statistics.Data.gov.uk\Doc\Local Authority\30UN,06/06/2023,72.43,Scribe,Scribe,Online Purchase,133000,CDIG - Customer & Digital,JCC - Information Services
South Ribble Council,http://Statistics.Data.gov.uk\Doc\Local Authority\30UN,08/06/2023,9.00,EE,EE top up waste,Online Purchase,133000,CDIG - Customer & Digital,JCC - Information Services
South Ribble Council,http://Statistics.Data.gov.uk\Doc\Local Authority\30UN,08/06/2023,233.82,Zoom Video Communications,Zoom,Online Purchase,133000,CDIG - Customer & Digital,JCC - Information Services
South Ribble Council,http://Statistics.Data.gov.uk\Doc\Local Authority\30UN,11/06/2023,"2,981.33",Microsoft,Microsoft storage fees,Online Purchase,133000,CDIG - Customer & Digital,JCC - Information Services
South Ribble Council,http://Statistics.Data.gov.uk\Doc\Local Authority\30UN,16/06/2023,70.95,Scribe,scribe,Online Purchase,133000,CDIG - Customer & Digital,JCC - Information Services
South Ribble Council,http://Statistics.Data.gov.uk\Doc\Local Authority\30UN,24/06/2023,233.82,Zoom Video Communications,Zoom,Online Purchase,133000,CDIG - Customer & Digital,JCC - Information Services
South Ribble Council,http://Statistics.Data.gov.uk\Doc\Local Authority\30UN,03/04/2023,290.00,ibis Preston North PR3 5JE,NAME REDACTED ibis Preston North PR3 5JE 31,Accomodation,124050,COMU - Communities,JBC - Homelessness
South Ribble Council,http://Statistics.Data.gov.uk\Doc\Local Authority\30UN,04/04/2023,215.00,ibis Preston North PR3 5JE,NAME REDACTED ibis Preston North PR3 5JE 04,Accomodation,124050,COMU - Communities,JBC - Homelessness
South Ribble Council,http://Statistics.Data.gov.uk\Doc\Local Authority\30UN,04/04/2023,510.50,Premier Inn Preston Central PR1 2AB,NAME REDACTED Premier Inn Preston Central P,Accomodation,124050,COMU - Communities,JBC - Homelessness
South Ribble Council,http://Statistics.Data.gov.uk\Doc\Local Authority\30UN,07/04/2023,579.45,GAR HOTEL RES Winckley Square Residences,NAME REDACTED GAR HOTEL RES Winckley Square,Accomodation,124050,COMU - Communities,JBC - Homelessness
South Ribble Council,http://Statistics.Data.gov.uk\Doc\Local Authority\30UN,04/05/2023,73.74,Premier Inn Preston Central PR1 2AB,NAME REDACTED Premier Inn Preston Central P,Accomodation,124250,COMU - Communities,JBC - Homelessness
South Ribble Council,http://Statistics.Data.gov.uk\Doc\Local Authority\30UN,04/05/2023,536.50,Premier Inn Preston Central PR1 2AB,NAME REDACTED Premier Inn Preston Central P,Accomodation,124050,COMU - Communities,JBC - Homelessness
South Ribble Council,http://Statistics.Data.gov.uk\Doc\Local Authority\30UN,05/05/2023,483,Winckley Square Residences PR1 3NA,NAME REDACTED Winckley Square Residences PR,Accomodation,124050,COMU - Communities,JBC - Homelessness
South Ribble Council,http://Statistics.Data.gov.uk\Doc\Local Authority\30UN,11/05/2023,65.45,Premier Inn Preston South PR5 6BZ,NAME REDACTED Premier Inn Preston South PR5,Accomodation,124050,COMU - Communities,JBC - Homelessness
South Ribble Council,http://Statistics.Data.gov.uk\Doc\Local Authority\30UN,11/05/2023,65.45,Premier Inn Preston South PR5 6BZ,NAME REDACTED Premier Inn Preston South PR5,Accomodation,124250,COMU - Communities,JBC - Homelessness
South Ribble Council,http://Statistics.Data.gov.uk\Doc\Local Authority\30UN,11/05/2023,483,Winckley Square Residences PR1 3NA,NAME REDACTED Winckley Square Residences PR,Accomodation,124050,COMU - Communities,JBC - Homelessness
South Ribble Council,http://Statistics.Data.gov.uk\Doc\Local Authority\30UN,11/05/2023,538,Premier Inn Preston Central PR1 2AB,NAME REDACTED Premier Inn Preston Central P,Accomodation,124050,COMU - Communities,JBC - Homelessness
South Ribble Council,http://Statistics.Data.gov.uk\Doc\Local Authority\30UN,15/05/2023,505.5,Premier Inn Preston South PR5 6BZ,NAME REDACTED Premier Inn Preston South PR5,Accomodation,124050,COMU - Communities,JBC - Homelessness
South Ribble Council,http://Statistics.Data.gov.uk\Doc\Local Authority\30UN,23/05/2023,100,Premier Inn Preston South PR5 6BZ,NAME REDACTED 0 fine for smoking in her roo,Accomodation,124050,COMU - Communities,JBC - Homelessness
South Ribble Council,http://Statistics.Data.gov.uk\Doc\Local Authority\30UN,01/06/2023,420.16,Travelodge Preston Central PR1 5NX,NAME REDACTED Travelodge Preston Central PR,Accomodation,124050,COMU - Communities,JBC - Homelessness
South Ribble Council,http://Statistics.Data.gov.uk\Doc\Local Authority\30UN,02/06/2023,483,Winckley Square Residences PR1 3NA,NAME REDACTED Winckley Square Residences PR,Accomodation,124050,COMU - Communities,JBC - Homelessness
South Ribble Council,http://Statistics.Data.gov.uk\Doc\Local Authority\30UN,02/06/2023,611.5,Premier Inn Preston South (Craven Drive),NAME REDACTED Premier Inn Preston South (Cr,Accomodation,124050,COMU - Communities,JBC - Homelessness
South Ribble Council,http://Statistics.Data.gov.uk\Doc\Local Authority\30UN,09/06/2023,238.63,Travelodge Preston Central PR1 5NX,NAME REDACTED Travelodge Preston Central PR,Accomodation,124050,COMU - Communities,JBC - Homelessness
South Ribble Council,http://Statistics.Data.gov.uk\Doc\Local Authority\30UN,09/06/2023,238.63,Travelodge Preston Central PR1 5NX,NAME REDACTED Travelodge Preston Central PR,Accomodation,124050,COMU - Communities,JBC - Homelessness
South Ribble Council,http://Statistics.Data.gov.uk\Doc\Local Authority\30UN,09/06/2023,483,Winckley Square Residences PR1 3NA,NAME REDACTED Winckley Square Residences PR,Accomodation,124050,COMU - Communities,JBC - Homelessness
South Ribble Council,http://Statistics.Data.gov.uk\Doc\Local Authority\30UN,15/06/2023,483,Winckley Square Residences PR1 3NA,NAME REDACTED Winckley Square Residences PR,Accomodation,124050,COMU - Communities,JBC - Homelessness
South Ribble Council,http://Statistics.Data.gov.uk\Doc\Local Authority\30UN,22/06/2023,483,Winckley Square Residences PR1 3NA,NAME REDACTED Winckley Square Residences PR,Accomodation,124050,COMU - Communities,JBC - Homelessness
South Ribble Council,http://Statistics.Data.gov.uk\Doc\Local Authority\30UN,23/06/2023,200.6,Premier Inn Chorley North PR6 8AB,NAME REDACTED Premier Inn Chorley North PR6,Accomodation,124250,COMU - Communities,JBC - Homelessness
South Ribble Council,http://Statistics.Data.gov.uk\Doc\Local Authority\30UN,23/06/2023,200.6,Premier Inn Chorley North PR6 8AB,NAME REDACTED Premier Inn Chorley North PR6,Accomodation,124250,COMU - Communities,JBC - Homelessness
South Ribble Council,http://Statistics.Data.gov.uk\Doc\Local Authority\30UN,23/06/2023,200.6,Premier Inn Chorley North PR6 8AB,NAME REDACTED Premier Inn Chorley North PR6,Accomodation,124250,COMU - Communities,JBC - Homelessness
South Ribble Council,http://Statistics.Data.gov.uk\Doc\Local Authority\30UN,23/06/2023,200.6,Premier Inn Chorley North PR6 8AB,NAME REDACTED Premier Inn Chorley North PR6,Accomodation,124250,COMU - Communities,JBC - Homelessness
South Ribble Council,http://Statistics.Data.gov.uk\Doc\Local Authority\30UN,23/06/2023,200.6,Premier Inn Chorley North PR6 8AB,NAME REDACTED Premier Inn Chorley North PR6,Accomodation,124250,COMU - Communities,JBC - Homelessness
South Ribble Council,http://Statistics.Data.gov.uk\Doc\Local Authority\30UN,23/06/2023,200.6,Premier Inn Chorley North PR6 8AB,NAME REDACTED Premier Inn Chorley North PR6,Accomodation,124250,COMU - Communities,JBC - Homelessness
South Ribble Council,http://Statistics.Data.gov.uk\Doc\Local Authority\30UN,23/06/2023,205.7,Premier Inn Bolton Stadium Arena BL6 6LB,NAME REDACTED Premier Inn Bolton Stadium Ar,Accomodation,124250,COMU - Communities,JBC - Homelessness
South Ribble Council,http://Statistics.Data.gov.uk\Doc\Local Authority\30UN,27/06/2023,73.95,Premier Inn Bolton Stadium Arena BL6 6LB,NAME REDACTED Premier Inn Bolton Stadium Ar,Accomodation,124250,COMU - Communities,JBC - Homelessness
South Ribble Council,http://Statistics.Data.gov.uk\Doc\Local Authority\30UN,27/06/2023,73.95,Premier Inn Bolton Stadium Arena BL6 6LB,NAME REDACTED Premier Inn Bolton Stadium Ar,Accomodation,124250,COMU - Communities,JBC - Homelessness
South Ribble Council,http://Statistics.Data.gov.uk\Doc\Local Authority\30UN,29/06/2023,603.5,Premier Inn Preston Central PR1 2AB,NAME REDACTED Premier Inn Preston Central P,Accomodation,124050,COMU - Communities,JBC - Homelessness
South Ribble Council,http://Statistics.Data.gov.uk\Doc\Local Authority\30UN,11/04/2023,66.28,Travelodge Southport PR8 1RN,NAME REDACTED Travelodge Southport PR8 1RN ,Accomodation,124250,COMU - Communities,JBC - Homelessness
South Ribble Council,http://Statistics.Data.gov.uk\Doc\Local Authority\30UN,12/04/2023,558,Premier Inn Preston South PR5 6BZ,NAME REDACTED Premier Inn Preston South PR5,Accomodation,124050,COMU - Communities,JBC - Homelessness
South Ribble Council,http://Statistics.Data.gov.uk\Doc\Local Authority\30UN,18/04/2023,232.9,Premier Inn Preston Central PR1 2AB,NAME REDACTED Premier Inn Preston Central P,Accomodation,124050,COMU - Communities,JBC - Homelessness
South Ribble Council,http://Statistics.Data.gov.uk\Doc\Local Authority\30UN,20/04/2023,535.5,Premier Inn Preston Central PR1 2AB,NAME REDACTED Premier Inn Preston Central P,Accomodation,124050,COMU - Communities,JBC - Homelessness
South Ribble Council,http://Statistics.Data.gov.uk\Doc\Local Authority\30UN,20/04/2023,545.5,Premier Inn Preston South PR5 6BZ,NAME REDACTED Premier Inn Preston South PR5,Accomodation,124050,COMU - Communities,JBC - Homelessness
South Ribble Council,http://Statistics.Data.gov.uk\Doc\Local Authority\30UN,24/04/2023,30.58,Travelodge Southport PR8 1RN,NAME REDACTED Travelodge Southport PR8 1RN ,Accomodation,124250,COMU - Communities,JBC - Homelessness
South Ribble Council,http://Statistics.Data.gov.uk\Doc\Local Authority\30UN,25/04/2023,468.5,Premier Inn Preston South PR5 6BZ,NAME REDACTED Premier Inn Preston South PR5,Accomodation,124050,COMU - Communities,JBC - Homelessness
South Ribble Council,http://Statistics.Data.gov.uk\Doc\Local Authority\30UN,22/05/2023,162.35,Premier Inn Preston Central PR1 2AB,NAME REDACTED Premier Inn Preston Central P,Accomodation,124050,COMU - Communities,JBC - Homelessness
South Ribble Council,http://Statistics.Data.gov.uk\Doc\Local Authority\30UN,22/05/2023,600,Beacon Fell View Holiday Park,NAME REDACTED Beacon Fell View Holiday Park,Accomodation,124050,COMU - Communities,JBC - Homelessness
South Ribble Council,http://Statistics.Data.gov.uk\Doc\Local Authority\30UN,16/06/2023,155,Travelodge Preston Central PR1 5NX,NAME REDACTED Travelodge Preston Central PR,Accomodation,124250,COMU - Communities,JBC - Homelessness
South Ribble Council,http://Statistics.Data.gov.uk\Doc\Local Authority\30UN,16/06/2023,183.56,Travelodge Preston Central PR1 5NX,NAME REDACTED Travelodge Preston Central PR,Accomodation,124250,COMU - Communities,JBC - Homelessness
South Ribble Council,http://Statistics.Data.gov.uk\Doc\Local Authority\30UN,16/06/2023,183.56,Travelodge Preston Central PR1 5NX,NAME REDACTED Travelodge Preston Central PR,Accomodation,124250,COMU - Communities,JBC - Homelessness
South Ribble Council,http://Statistics.Data.gov.uk\Doc\Local Authority\30UN,16/06/2023,183.56,Travelodge Preston Central PR1 5NX,NAME REDACTED Travelodge Preston Central PR,Accomodation,124250,COMU - Communities,JBC - Homelessness
South Ribble Council,http://Statistics.Data.gov.uk\Doc\Local Authority\30UN,16/06/2023,485.44,Travelodge Preston Central PR1 5NX,NAME REDACTED Travelodge Preston Central PR,Accomodation,124050,COMU - Communities,JBC - Homelessness
South Ribble Council,http://Statistics.Data.gov.uk\Doc\Local Authority\30UN,20/06/2023,250.26,Holiday Inn Express Preston South PR58AA,2 x RSP rooms - NAME REDACTED - Holiday Inn Express Preston South,Accomodation,124250,COMU - Communities,JBC - Homelessness
South Ribble Council,http://Statistics.Data.gov.uk\Doc\Local Authority\30UN,20/06/2023,266.05,Premier Inn Preston Central PR1 2AB,NAME REDACTED Premier Inn Preston Central P,Accomodation,124050,COMU - Communities,JBC - Homelessness
South Ribble Council,http://Statistics.Data.gov.uk\Doc\Local Authority\30UN,20/06/2023,600,Beacon Fell View Holiday Park,NAME REDACTED Beacon Fell View Holiday Park,Accomodation,124050,COMU - Communities,JBC - Homelessness
South Ribble Council,http://Statistics.Data.gov.uk\Doc\Local Authority\30UN,20/06/2023,613,Premier Inn Preston Central PR1 2AB,NAME REDACTED Premier Inn Preston Central P,Accomodation,124050,COMU - Communities,JBC - Homelessness
South Ribble Council,http://Statistics.Data.gov.uk\Doc\Local Authority\30UN,26/06/2023,62.9,Premier Inn Bolton Stadium Arena BL6 6LB,NAME REDACTED Premier Inn Bolton Stadium Ar,Accomodation,124250,COMU - Communities,JBC - Homelessness
South Ribble Council,http://Statistics.Data.gov.uk\Doc\Local Authority\30UN,26/06/2023,62.9,Premier Inn Bolton Stadium Arena BL6 6LB,NAME REDACTED Premier Inn Bolton Stadium Ar,Accomodation,124250,COMU - Communities,JBC - Homelessness
South Ribble Council,http://Statistics.Data.gov.uk\Doc\Local Authority\30UN,26/06/2023,62.9,Premier Inn Bolton Stadium Arena BL6 6LB,NAME REDACTED Premier Inn Bolton Stadium Ar,Accomodation,124250,COMU - Communities,JBC - Homelessness
South Ribble Council,http://Statistics.Data.gov.uk\Doc\Local Authority\30UN,26/06/2023,72.25,Premier Inn Blackburn South M65 J4,NAME REDACTED Premier Inn Blackburn South M,Accomodation,124250,COMU - Communities,JBC - Homelessness
South Ribble Council,http://Statistics.Data.gov.uk\Doc\Local Authority\30UN,26/06/2023,87.55,Premier Inn Preston South PR5 6BZ,NAME REDACTED Premier Inn Preston South PR5,Accomodation,124250,COMU - Communities,JBC - Homelessness
South Ribble Council,http://Statistics.Data.gov.uk\Doc\Local Authority\30UN,26/06/2023,87.55,Premier Inn Preston South PR5 6BZ,NAME REDACTED Premier Inn Preston South PR5,Accomodation,124250,COMU - Communities,JBC - Homelessness
South Ribble Council,http://Statistics.Data.gov.uk\Doc\Local Authority\30UN,26/06/2023,109.65,Premier Inn Chorley North PR6 8AB,NAME REDACTED Premier Inn Chorley North PR6,Accomodation,124250,COMU - Communities,JBC - Homelessness
South Ribble Council,http://Statistics.Data.gov.uk\Doc\Local Authority\30UN,26/06/2023,361.25,Premier Inn Preston North PR3 0RE,NAME REDACTED Premier Inn Preston North PR3,Accomodation,124050,COMU - Communities,JBC - Homelessness
South Ribble Council,http://Statistics.Data.gov.uk\Doc\Local Authority\30UN,27/06/2023,73.95,Premier Inn Bolton Stadium Arena BL6 6LB,NAME REDACTED Premier Inn Bolton Stadium Ar,Accomodation,124250,COMU - Communities,JBC - Homelessness
South Ribble Council,http://Statistics.Data.gov.uk\Doc\Local Authority\30UN,27/06/2023,101.15,Premier Inn Preston North PR3 0RE,NAME REDACTED Premier Inn Preston North PR3,Accomodation,124250,COMU - Communities,JBC - Homelessness
South Ribble Council,http://Statistics.Data.gov.uk\Doc\Local Authority\30UN,27/06/2023,488.51,Travelodge Preston Central PR1 5NX,NAME REDACTED Travelodge Preston Central PR,Accomodation,124050,COMU - Communities,JBC - Homelessness
South Ribble Council,http://Statistics.Data.gov.uk\Doc\Local Authority\30UN,27/06/2023,551.74,Travelodge Preston Central PR1 5NX,NAME REDACTED Travelodge Preston Central PR,Accomodation,124050,COMU - Communities,JBC - Homelessness
South Ribble Council,http://Statistics.Data.gov.uk\Doc\Local Authority\30UN,28/06/2023,119.85,Premier Inn Preston North PR3 0RE,NAME REDACTED Premier Inn Preston North PR3,Accomodation,124250,COMU - Communities,JBC - Homelessness
South Ribble Council,http://Statistics.Data.gov.uk\Doc\Local Authority\30UN,28/06/2023,119.85,Premier Inn Preston East PR2 5PZ,NAME REDACTED Premier Inn Preston East PR2 ,Accomodation,124250,COMU - Communities,JBC - Homelessness
South Ribble Council,http://Statistics.Data.gov.uk\Doc\Local Authority\30UN,28/06/2023,119.85,Premier Inn Preston East PR2 5PZ,NAME REDACTED Premier Inn Preston East PR2 ,Accomodation,124250,COMU - Communities,JBC - Homelessness
South Ribble Council,http://Statistics.Data.gov.uk\Doc\Local Authority\30UN,28/06/2023,119.99,Holiday Inn Express Preston South,NAME REDACTED Holiday Inn Express Preston S,Accomodation,124250,COMU - Communities,JBC - Homelessness
South Ribble Council,http://Statistics.Data.gov.uk\Doc\Local Authority\30UN,28/06/2023,130.9,Premier Inn Preston South PR5 6BZ,NAME REDACTED Premier Inn Preston South PR5,Accomodation,124250,COMU - Communities,JBC - Homelessness
South Ribble Council,http://Statistics.Data.gov.uk\Doc\Local Authority\30UN,29/06/2023,54.81,Trainline,Trainline train ticket purchase - 29.06.23 - who was returning to Durham on,Travel,124250,COMU - Communities,JBC - Homelessness
South Ribble Council,http://Statistics.Data.gov.uk\Doc\Local Authority\30UN,29/06/2023,67.15,Premier Inn Chorley North PR6 8AB,NAME REDACTED Premier Inn Chorley North PR6,Accomodation,124250,COMU - Communities,JBC - Homelessness
South Ribble Council,http://Statistics.Data.gov.uk\Doc\Local Authority\30UN,29/06/2023,77.35,Premier Inn Preston South PR5 6BZ,NAME REDACTED Premier Inn Preston South PR5,Accomodation,124250,COMU - Communities,JBC - Homelessness
South Ribble Council,http://Statistics.Data.gov.uk\Doc\Local Authority\30UN,29/06/2023,77.35,Premier Inn Preston South PR5 6BZ,NAME REDACTED Premier Inn Preston South PR5,Accomodation,124250,COMU - Communities,JBC - Homelessness
South Ribble Council,http://Statistics.Data.gov.uk\Doc\Local Authority\30UN,29/06/2023,93,Premier Inn Preston Central PR1 2AB,NAME REDACTED Premier Inn Preston Central P,Accomodation,124250,COMU - Communities,JBC - Homelessness
South Ribble Council,http://Statistics.Data.gov.uk\Doc\Local Authority\30UN,29/06/2023,600,Beacon Fell View Holiday Park,NAME REDACTED Beacon Fell View Holiday Park,Accomodation,124050,COMU - Communities,JBC - Homelessness
South Ribble Council,http://Statistics.Data.gov.uk\Doc\Local Authority\30UN,29/06/2023,607.5,Premier Inn Preston South PR5 6BZ,NAME REDACTED Premier Inn Preston South PR5,Accomodation,124050,COMU - Communities,JBC - Homelessness
South Ribble Council,http://Statistics.Data.gov.uk\Doc\Local Authority\30UN,28/04/2023,178.5,Premier Inn Preston South PR5 6BZ,NAME REDACTED Premier Inn Preston South PR5,Accomodation,124050,COMU - Communities,JBC - Homelessness
South Ribble Council,http://Statistics.Data.gov.uk\Doc\Local Authority\30UN,09/05/2023,547,Premier Inn Preston South PR5 6BZ,NAME REDACTED Premier Inn Preston South PR5,Accomodation,124050,COMU - Communities,JBC - Homelessness
South Ribble Council,http://Statistics.Data.gov.uk\Doc\Local Authority\30UN,09/05/2023,547,Premier Inn Preston South PR5 6BZ,NAME REDACTED Premier Inn Preston South PR5,Accomodation,124050,COMU - Communities,JBC - Homelessness
South Ribble Council,http://Statistics.Data.gov.uk\Doc\Local Authority\30UN,16/05/2023,544.5,Premier Inn Preston Central PR1 2AB,NAME REDACTED Premier Inn Preston Central P,Accomodation,124050,COMU - Communities,JBC - Homelessness
South Ribble Council,http://Statistics.Data.gov.uk\Doc\Local Authority\30UN,16/05/2023,545.5,Premier Inn Preston Central PR1 2AB,NAME REDACTED Premier Inn Preston Central P,Accomodation,124050,COMU - Communities,JBC - Homelessness
South Ribble Council,http://Statistics.Data.gov.uk\Doc\Local Authority\30UN,23/05/2023,543,Premier Inn Preston Central PR1 2AB,NAME REDACTED Premier Inn Preston Central P,Accomodation,124050,COMU - Communities,JBC - Homelessness
South Ribble Council,http://Statistics.Data.gov.uk\Doc\Local Authority\30UN,13/06/2023,61.18,Travelodge Preston Central PR1 5NX,NAME REDACTED Travelodge Preston Central PR,Accomodation,124250,COMU - Communities,JBC - Homelessness
South Ribble Council,http://Statistics.Data.gov.uk\Doc\Local Authority\30UN,13/06/2023,61.18,Travelodge Preston Central PR1 5NX,NAME REDACTED Travelodge Preston Central PR,Accomodation,124250,COMU - Communities,JBC - Homelessness
South Ribble Council,http://Statistics.Data.gov.uk\Doc\Local Authority\30UN,13/06/2023,431.38,Travelodge Preston Central PR1 5NX,NAME REDACTED Travelodge Preston Central PR,Accomodation,124050,COMU - Communities,JBC - Homelessness
South Ribble Council,http://Statistics.Data.gov.uk\Doc\Local Authority\30UN,13/06/2023,600,Premier Inn Preston South PR5 6BZ,NAME REDACTED Premier Inn Preston South PR5,Accomodation,124050,COMU - Communities,JBC - Homelessness
South Ribble Council,http://Statistics.Data.gov.uk\Doc\Local Authority\30UN,14/06/2023,61.18,Travelodge Preston Central PR1 5NX,NAME REDACTED Travelodge Preston Central PR,Accomodation,124250,COMU - Communities,JBC - Homelessness
South Ribble Council,http://Statistics.Data.gov.uk\Doc\Local Authority\30UN,14/06/2023,61.18,Travelodge Preston Central PR1 5NX,NAME REDACTED Travelodge Preston Central PR,Accomodation,124250,COMU - Communities,JBC - Homelessness
South Ribble Council,http://Statistics.Data.gov.uk\Doc\Local Authority\30UN,14/06/2023,61.18,Travelodge Preston Central PR1 5NX,NAME REDACTED Travelodge Preston Central PR,Accomodation,124250,COMU - Communities,JBC - Homelessness
South Ribble Council,http://Statistics.Data.gov.uk\Doc\Local Authority\30UN,14/06/2023,61.18,Travelodge Preston Central PR1 5NX,NAME REDACTED Travelodge Preston Central PR,Accomodation,124250,COMU - Communities,JBC - Homelessness
South Ribble Council,http://Statistics.Data.gov.uk\Doc\Local Authority\30UN,14/06/2023,125.43,Travelodge Preston Central PR1 5NX,NAME REDACTED Travelodge Preston Central PR,Accomodation,124250,COMU - Communities,JBC - Homelessness
South Ribble Council,http://Statistics.Data.gov.uk\Doc\Local Authority\30UN,14/06/2023,155,Travelodge Preston Central PR1 5NX,NAME REDACTED Travelodge Preston Central PR,Accomodation,124250,COMU - Communities,JBC - Homelessness
South Ribble Council,http://Statistics.Data.gov.uk\Doc\Local Authority\30UN,14/06/2023,442.6,Travelodge Preston Central PR1 5NX,NAME REDACTED Travelodge Preston Central PR,Accomodation,124050,COMU - Communities,JBC - Homelessness
South Ribble Council,http://Statistics.Data.gov.uk\Doc\Local Authority\30UN,21/06/2023,118,Premier Inn Preston South PR5 6BZ,NAME REDACTED Premier Inn Preston South PR5,Accomodation,124250,COMU - Communities,JBC - Homelessness
South Ribble Council,http://Statistics.Data.gov.uk\Doc\Local Authority\30UN,22/06/2023,109,Farington Lodge Hotel,NAME REDACTED and Mrs F Farington Lodge Hot,Accomodation,124250,COMU - Communities,JBC - Homelessness
South Ribble Council,http://Statistics.Data.gov.uk\Doc\Local Authority\30UN,27/06/2023,635.5,Premier Inn Chorley North PR6 8AB,NAME REDACTED Premier Inn Chorley North PR6,Accomodation,124050,COMU - Communities,JBC - Homelessness
South Ribble Council,http://Statistics.Data.gov.uk\Doc\Local Authority\30UN,27/06/2023,738.17,Holiday Inn Express Preston South PR58AA,Section 188 homelessness placement for 27/06/23 - 04/07/23 at Holiday Inn Express Preston South,Accomodation,124050,COMU - Communities,JBC - Homelessness
South Ribble Council,http://Statistics.Data.gov.uk\Doc\Local Authority\30UN,28/06/2023,80.75,Premier Inn Bolton Stadium Arena BL6 6LB,NAME REDACTED Premier Inn Bolton Stadium Ar,Accomodation,124250,COMU - Communities,JBC - Homelessness
South Ribble Council,http://Statistics.Data.gov.uk\Doc\Local Authority\30UN,14/04/2023,244,AVANTI WEST COAST,"ROYAL GARDEN PARTY, TRAIN TRAVEL FOR MAYOR AND MAYORESS",Rail Fare,143750,CDIG - Customer & Digital,JCB - Revenue & Benefits
South Ribble Council,http://Statistics.Data.gov.uk\Doc\Local Authority\30UN,16/05/2023,45.2,AVANTI,TRAIN TRAVEL,Rail Fare,172600,CDIG - Customer & Digital,JCB - Revenue & Benefits
South Ribble Council,http://Statistics.Data.gov.uk\Doc\Local Authority\30UN,17/05/2023,245.7,AVANTI,TRAIN TRAVEL,Rail Fare,112000,CDIG - Customer & Digital,JCB - Revenue & Benefits
South Ribble Council,http://Statistics.Data.gov.uk\Doc\Local Authority\30UN,27/04/2023,322.5,DVLA,Road Tax April 2023 - VIN REDACTED,Online Purchase,172100,CDIG - Customer & Digital,JCD - Neighbourhoods
South Ribble Council,http://Statistics.Data.gov.uk\Doc\Local Authority\30UN,27/04/2023,167.5,DVLA,Road Tax April 2023 - VIN REDACTED,Online Purchase,172400,CDIG - Customer & Digital,JCD - Neighbourhoods
South Ribble Council,http://Statistics.Data.gov.uk\Doc\Local Authority\30UN,27/04/2023,302.5,DVLA,Road Tax April 2023 - VIN REDACTED,Online Purchase,172830,CDIG - Customer & Digital,JCD - Neighbourhoods
South Ribble Council,http://Statistics.Data.gov.uk\Doc\Local Authority\30UN,27/04/2023,302.5,DVLA,Road Tax April 2023 - VIN REDACTED,Online Purchase,172840,CDIG - Customer & Digital,JCD - Neighbourhoods
South Ribble Council,http://Statistics.Data.gov.uk\Doc\Local Authority\30UN,27/04/2023,302.5,DVLA,Road Tax April 2023 - VIN REDACTED,Online Purchase,172830,CDIG - Customer & Digital,JCD - Neighbourhoods
South Ribble Council,http://Statistics.Data.gov.uk\Doc\Local Authority\30UN,27/04/2023,322.5,DVLA,Road Tax April 2023 - VIN REDACTED,Online Purchase,172400,CDIG - Customer & Digital,JCD - Neighbourhoods
South Ribble Council,http://Statistics.Data.gov.uk\Doc\Local Authority\30UN,27/04/2023,322.5,DVLA,Road Tax April 2023 - VIN REDACTED,Online Purchase,172400,CDIG - Customer & Digital,JCD - Neighbourhoods
South Ribble Council,http://Statistics.Data.gov.uk\Doc\Local Authority\30UN,27/04/2023,322.5,DVLA,Road Tax April 2023 - VIN REDACTED,Online Purchase,172400,CDIG - Customer & Digital,JCD - Neighbourhoods
South Ribble Council,http://Statistics.Data.gov.uk\Doc\Local Authority\30UN,27/04/2023,322.5,DVLA,Road Tax April 2023 - VIN REDACTED,Online Purchase,172300,CDIG - Customer & Digital,JCD - Neighbourhoods
South Ribble Council,http://Statistics.Data.gov.uk\Doc\Local Authority\30UN,27/04/2023,322.5,DVLA,Road Tax April 2023 - VIN REDACTED,Online Purchase,172300,CDIG - Customer & Digital,JCD - Neighbourhoods
South Ribble Council,http://Statistics.Data.gov.uk\Doc\Local Authority\30UN,29/06/2023,63.75,Purple Rooms,Accomodation for New Progress,Accomodation,124050,CDIG - Customer & Digital,JCD - Neighbourhoods
South Ribble Council,http://Statistics.Data.gov.uk\Doc\Local Authority\30UN,04/04/2023,73.1,Premier Inn Bolton,Emergency accomodation,Accomodation,124250,COMU - Communities,JBB - Environmental Health
South Ribble Council,http://Statistics.Data.gov.uk\Doc\Local Authority\30UN,07/06/2023,77.35,Premier Inn Blackpool,Hotel accommodation for ,Accomodation,124250,COMU - Communities,JBB - Environmental Health
South Ribble Council,http://Statistics.Data.gov.uk\Doc\Local Authority\30UN,03/04/2023,52,Travelodge,Travelodge booking ,Accomodation,124050,CDIG - Customer & Digital,JCD - Neighbourhoods
